[Event "Titled Tuesday Blitz January 25 2022"]
[White "Janaszak, Dawid"]
[Black "Gnechko, Ruslan"]
[WhiteFideId "1119206"]
[BlackFideId "14135868"]
[WhiteElo "2199"]
[BlackElo "2289"]
[Result "1-0"]
[Round "11"]
[TimeControl "180+1"]
[Date "2022.01.26"]
[WhiteClock "0:00:52"]
[BlackClock "0:00:10"]

1. e4 {[%clk 0:03:00]}  c6 {[%clk 0:02:59]} 2. Ne2 {[%clk 0:02:56]}  d5 {[%clk 0:03:00]} 3. e5 {[%clk 0:02:56]}  c5 {[%clk 0:02:58]} 4. Nf4 {[%clk 0:02:55]}  Nc6 {[%clk 0:02:57]} 5. Bb5 {[%clk 0:02:53]}  Bf5 {[%clk 0:02:54]} 6. e6 {[%clk 0:02:51]}  fxe6 {[%clk 0:02:30]} 7. Qe2 {[%clk 0:02:46]}  Qd6 {[%clk 0:02:28]} 8. d3 {[%clk 0:02:43]}  Nf6 {[%clk 0:02:27]} 9. Nc3 {[%clk 0:02:28]}  e5 {[%clk 0:02:25]} 10. Nh3 {[%clk 0:02:22]}  Bxh3 {[%clk 0:02:24]} 11. gxh3 {[%clk 0:02:22]}  e6 {[%clk 0:02:24]} 12. Bg5 {[%clk 0:02:19]}  O-O-O {[%clk 0:02:23]} 13. Bxc6 {[%clk 0:02:18]}  bxc6 {[%clk 0:02:23]} 14. O-O-O {[%clk 0:02:18]}  Be7 {[%clk 0:02:23]} 15. Rde1 {[%clk 0:02:17]}  Nd7 {[%clk 0:02:21]} 16. h4 {[%clk 0:02:15]}  Bxg5+ {[%clk 0:02:18]} 17. hxg5 {[%clk 0:02:16]}  Rdf8 {[%clk 0:02:18]} 18. Rhg1 {[%clk 0:02:13]}  Rf4 {[%clk 0:02:10]} 19. Kb1 {[%clk 0:01:33]}  Rhf8 {[%clk 0:02:09]} 20. Qh5 {[%clk 0:01:32]}  Rxf2 {[%clk 0:02:03]} 21. Qxh7 {[%clk 0:01:31]}  Qe7 {[%clk 0:02:04]} 22. h4 {[%clk 0:01:29]}  Rh2 {[%clk 0:02:00]} 23. h5 {[%clk 0:01:27]}  Kd8 {[%clk 0:01:25]} 24. Nd1 {[%clk 0:01:16]}  Rf5 {[%clk 0:01:12]} 25. h6 {[%clk 0:01:08]}  gxh6 {[%clk 0:01:04]} 26. g6 {[%clk 0:01:08]}  Rg5 {[%clk 0:00:40]} 27. g7 {[%clk 0:00:59]}  Nf6 {[%clk 0:00:24]} 28. Rxg5 {[%clk 0:00:59]}  Nxh7 {[%clk 0:00:21]} 29. g8=Q+ {[%clk 0:00:58]}  Nf8 {[%clk 0:00:21]} 30. Rg7 {[%clk 0:00:56]}  Qe8 {[%clk 0:00:10]} 31. Rf1 {[%clk 0:00:54]}  Nd7 {[%clk 0:00:10]} 32. Qh7 {[%clk 0:00:52]} 1-0


[Site "https://www.chess.com"]

[Event "Titled Tuesday Blitz January 25 2022"]
[White "Kadam, Om Manish"]
[Black "Manukian, Artak"]
[WhiteFideId "45076294"]
[BlackFideId "13301373"]
[WhiteElo "1729"]
[BlackElo "2422"]
[Result "1/2-1/2"]
[Round "11"]
[TimeControl "180+1"]
[Date "2022.01.26"]
[WhiteClock "0:00:21"]
[BlackClock "0:00:15"]

1. e4 {[%clk 0:03:00]}  c6 {[%clk 0:03:00]} 2. c4 {[%clk 0:03:00]}  d5 {[%clk 0:02:58]} 3. exd5 {[%clk 0:03:01]}  cxd5 {[%clk 0:02:57]} 4. cxd5 {[%clk 0:03:02]}  Nf6 {[%clk 0:02:56]} 5. Nc3 {[%clk 0:03:02]}  g6 {[%clk 0:02:54]} 6. Nf3 {[%clk 0:03:02]}  Bg7 {[%clk 0:02:54]} 7. Qb3 {[%clk 0:03:02]}  O-O {[%clk 0:02:54]} 8. Bc4 {[%clk 0:03:02]}  Nbd7 {[%clk 0:02:55]} 9. d3 {[%clk 0:03:01]}  Nb6 {[%clk 0:02:51]} 10. Be3 {[%clk 0:03:00]}  Bf5 {[%clk 0:02:51]} 11. O-O {[%clk 0:02:59]}  Ng4 {[%clk 0:02:41]} 12. Bxb6 {[%clk 0:02:53]}  axb6 {[%clk 0:02:41]} 13. h3 {[%clk 0:02:53]}  Ne5 {[%clk 0:02:37]} 14. Nxe5 {[%clk 0:02:39]}  Bxe5 {[%clk 0:02:38]} 15. Ne2 {[%clk 0:02:39]}  h5 {[%clk 0:02:21]} 16. a4 {[%clk 0:02:37]}  Bc7 {[%clk 0:02:16]} 17. Rfe1 {[%clk 0:02:20]}  Qd6 {[%clk 0:02:00]} 18. Ng3 {[%clk 0:02:18]}  Bd7 {[%clk 0:01:51]} 19. Qa3 {[%clk 0:01:58]}  Rxa4 {[%clk 0:01:36]} 20. Qxd6 {[%clk 0:01:48]}  Bxd6 {[%clk 0:01:31]} 21. Ne4 {[%clk 0:01:48]}  Rfa8 {[%clk 0:01:29]} 22. Rxa4 {[%clk 0:01:47]}  Rxa4 {[%clk 0:01:26]} 23. Nxd6 {[%clk 0:01:44]}  exd6 {[%clk 0:01:27]} 24. Re7 {[%clk 0:01:43]}  Bf5 {[%clk 0:01:26]} 25. Rxb7 {[%clk 0:01:39]}  Rb4 {[%clk 0:01:15]} 26. b3 {[%clk 0:01:37]}  Kf8 {[%clk 0:00:55]} 27. f3 {[%clk 0:01:36]}  Ke8 {[%clk 0:00:53]} 28. Kf2 {[%clk 0:01:36]}  Bc8 {[%clk 0:00:48]} 29. Rc7 {[%clk 0:01:09]}  Kd8 {[%clk 0:00:46]} 30. Rxf7 {[%clk 0:00:53]}  b5 {[%clk 0:00:43]} 31. Rf6 {[%clk 0:00:53]}  Kc7 {[%clk 0:00:37]} 32. Rxg6 {[%clk 0:00:52]}  bxc4 {[%clk 0:00:37]} 33. bxc4 {[%clk 0:00:52]}  Bf5 {[%clk 0:00:28]} 34. Rg7+ {[%clk 0:00:51]}  Kb6 {[%clk 0:00:27]} 35. Ke3 {[%clk 0:00:33]}  Rb3 {[%clk 0:00:26]} 36. Rg5 {[%clk 0:00:33]}  Bxd3 {[%clk 0:00:25]} 37. Rxh5 {[%clk 0:00:33]}  Bxc4+ {[%clk 0:00:24]} 38. Kf4 {[%clk 0:00:28]}  Kc5 {[%clk 0:00:23]} 39. g4 {[%clk 0:00:28]}  Bxd5 {[%clk 0:00:23]} 40. g5 {[%clk 0:00:22]}  Rxf3+ {[%clk 0:00:23]} 41. Kg4 {[%clk 0:00:22]}  Rf8 {[%clk 0:00:23]} 42. g6 {[%clk 0:00:23]}  Kd4 {[%clk 0:00:22]} 43. h4 {[%clk 0:00:22]}  Bf3+ {[%clk 0:00:22]} 44. Kg5 {[%clk 0:00:20]}  Bxh5 {[%clk 0:00:23]} 45. Kxh5 {[%clk 0:00:21]}  Ke5 {[%clk 0:00:23]} 46. g7 {[%clk 0:00:20]}  Rg8 {[%clk 0:00:23]} 47. Kg6 {[%clk 0:00:20]}  d5 {[%clk 0:00:17]} 48. h5 {[%clk 0:00:20]}  d4 {[%clk 0:00:17]} 49. h6 {[%clk 0:00:21]}  d3 {[%clk 0:00:14]} 50. h7 {[%clk 0:00:20]}  Rxg7+ {[%clk 0:00:14]} 51. Kxg7 {[%clk 0:00:21]}  d2 {[%clk 0:00:15]} 52. h8=Q {[%clk 0:00:22]}  d1=Q {[%clk 0:00:16]} 53. Kg6+ {[%clk 0:00:22]}  Kf4 {[%clk 0:00:14]} 54. Qh4+ {[%clk 0:00:22]}  Qg4+ {[%clk 0:00:14]} 55. Qxg4+ {[%clk 0:00:21]}  Kxg4 {[%clk 0:00:15]} 1/2-1/2


[Site "https://www.chess.com"]

[Event "Titled Tuesday Blitz January 25 2022"]
[White "Kanyamarala, Trisha"]
[Black "Sadovsky, Artem"]
[WhiteFideId "45004722"]
[BlackFideId "4155840"]
[WhiteElo "2002"]
[BlackElo "2369"]
[Result "0-1"]
[Round "11"]
[TimeControl "180+1"]
[Date "2022.01.26"]
[WhiteClock "0:00:02"]
[BlackClock "0:00:07"]

1. c4 {[%clk 0:03:00]}  g6 {[%clk 0:02:51]} 2. Nc3 {[%clk 0:02:58]}  Bg7 {[%clk 0:02:51]} 3. Nf3 {[%clk 0:02:57]}  d6 {[%clk 0:02:49]} 4. g3 {[%clk 0:02:57]}  e5 {[%clk 0:02:49]} 5. Bg2 {[%clk 0:02:56]}  f5 {[%clk 0:02:49]} 6. d4 {[%clk 0:02:55]}  e4 {[%clk 0:02:49]} 7. Ng5 {[%clk 0:02:55]}  Nf6 {[%clk 0:02:31]} 8. d5 {[%clk 0:02:49]}  O-O {[%clk 0:02:25]} 9. O-O {[%clk 0:02:49]}  Qe7 {[%clk 0:02:10]} 10. f3 {[%clk 0:02:46]}  h6 {[%clk 0:02:09]} 11. Ne6 {[%clk 0:02:38]}  Bxe6 {[%clk 0:02:09]} 12. dxe6 {[%clk 0:02:38]}  Qxe6 {[%clk 0:01:56]} 13. fxe4 {[%clk 0:02:31]}  fxe4 {[%clk 0:01:51]} 14. Be3 {[%clk 0:02:24]}  Qxc4 {[%clk 0:01:45]} 15. Rc1 {[%clk 0:02:15]}  Ng4 {[%clk 0:01:31]} 16. Rxf8+ {[%clk 0:02:06]}  Kxf8 {[%clk 0:01:32]} 17. Nd5 {[%clk 0:01:54]}  Nxe3 {[%clk 0:01:32]} 18. Nxe3 {[%clk 0:01:51]}  Qd4 {[%clk 0:01:33]} 19. Qf1+ {[%clk 0:01:39]}  Kg8 {[%clk 0:01:27]} 20. Rxc7 {[%clk 0:01:23]}  Qxe3+ {[%clk 0:01:26]} 21. Kh1 {[%clk 0:01:23]}  Qd4 {[%clk 0:00:48]} 22. Qf7+ {[%clk 0:01:20]}  Kh7 {[%clk 0:00:46]} 23. Rc8 {[%clk 0:01:14]}  h5 {[%clk 0:00:35]} 24. h4 {[%clk 0:00:43]}  a5 {[%clk 0:00:15]} 25. g4 {[%clk 0:00:40]}  hxg4 {[%clk 0:00:05]} 26. h5 {[%clk 0:00:36]}  Qf6 {[%clk 0:00:06]} 27. hxg6+ {[%clk 0:00:17]}  Kh6 {[%clk 0:00:06]} 28. Qg8 {[%clk 0:00:03]}  Qh4+ {[%clk 0:00:06]} 29. Kg1 {[%clk 0:00:03]}  Bd4+ {[%clk 0:00:07]} 30. e3 {[%clk 0:00:02]}  Bxe3+ {[%clk 0:00:06]} 31. Kf1 {[%clk 0:00:02]}  Qf2# {[%clk 0:00:07]} 0-1


[Site "https://www.chess.com"]

[Event "Titled Tuesday Blitz January 25 2022"]
[White "Kazarian, Anna-Maja"]
[Black "Risteski, Emil"]
[WhiteFideId "1033689"]
[BlackFideId "15005267"]
[WhiteElo "2004"]
[BlackElo "2070"]
[Result "1-0"]
[Round "11"]
[TimeControl "180+1"]
[Date "2022.01.26"]
[WhiteClock "0:00:53"]
[BlackClock "0:01:39"]

1. e4 {[%clk 0:01:55]}  e6 {[%clk 0:02:58]} 2. d4 {[%clk 0:01:54]}  d5 {[%clk 0:02:59]} 3. exd5 {[%clk 0:01:54]}  exd5 {[%clk 0:02:59]} 4. c4 {[%clk 0:01:53]}  dxc4 {[%clk 0:02:58]} 5. Bxc4 {[%clk 0:01:52]}  Bd6 {[%clk 0:02:58]} 6. Nc3 {[%clk 0:01:46]}  Nf6 {[%clk 0:02:56]} 7. Nf3 {[%clk 0:01:44]}  O-O {[%clk 0:02:55]} 8. O-O {[%clk 0:01:42]}  Nc6 {[%clk 0:02:55]} 9. Bg5 {[%clk 0:01:37]}  h6 {[%clk 0:02:54]} 10. Bh4 {[%clk 0:01:36]}  Bg4 {[%clk 0:02:53]} 11. h3 {[%clk 0:01:34]}  Bxf3 {[%clk 0:02:52]} 12. Qxf3 {[%clk 0:01:34]}  Nxd4 {[%clk 0:02:51]} 13. Qxb7 {[%clk 0:01:34]}  Rb8 {[%clk 0:02:49]} 14. Qxa7 {[%clk 0:01:30]}  Rxb2 {[%clk 0:02:39]} 15. Nd5 {[%clk 0:01:26]}  g5 {[%clk 0:02:19]} 16. Qxd4 {[%clk 0:01:24]}  Nxd5 {[%clk 0:02:09]} 17. Qxb2 {[%clk 0:01:21]}  Nb6 {[%clk 0:02:05]} 18. Qc2 {[%clk 0:01:11]}  gxh4 {[%clk 0:01:59]} 19. Qg6+ {[%clk 0:01:11]}  Kh8 {[%clk 0:01:59]} 20. Qxh6+ {[%clk 0:01:12]}  Kg8 {[%clk 0:01:58]} 21. Bd3 {[%clk 0:01:08]}  Bh2+ {[%clk 0:01:51]} 22. Kxh2 {[%clk 0:01:05]}  Qxd3 {[%clk 0:01:52]} 23. Qg5+ {[%clk 0:01:04]}  Kh8 {[%clk 0:01:51]} 24. Qxh4+ {[%clk 0:01:04]}  Kg8 {[%clk 0:01:49]} 25. Qg5+ {[%clk 0:00:57]}  Kh8 {[%clk 0:01:48]} 26. Rad1 {[%clk 0:00:58]}  Qe4 {[%clk 0:01:43]} 27. Qf6+ {[%clk 0:00:53]}  Kh7 {[%clk 0:01:39]} 28. Rd4 {[%clk 0:00:53]} 1-0


[Site "https://www.chess.com"]

[Event "Titled Tuesday Blitz January 25 2022"]
[White "Khripachenko, Alexander"]
[Black "Dronavalli, Harika"]
[WhiteFideId "54184975"]
[BlackFideId "5015197"]
[WhiteElo "2177"]
[BlackElo "2382"]
[Result "0-1"]
[Round "11"]
[TimeControl "180+1"]
[Date "2022.01.26"]
[WhiteClock "0:00:14"]
[BlackClock "0:00:47"]

1. e4 {[%clk 0:02:54]}  c5 {[%clk 0:02:59]} 2. Nf3 {[%clk 0:02:54]}  Nc6 {[%clk 0:02:59]} 3. d4 {[%clk 0:02:54]}  cxd4 {[%clk 0:02:59]} 4. Nxd4 {[%clk 0:02:55]}  Nf6 {[%clk 0:02:59]} 5. Nc3 {[%clk 0:02:55]}  e5 {[%clk 0:02:59]} 6. Ndb5 {[%clk 0:02:56]}  d6 {[%clk 0:03:00]} 7. a4 {[%clk 0:02:56]}  a6 {[%clk 0:02:55]} 8. Na3 {[%clk 0:02:55]}  Bg4 {[%clk 0:02:55]} 9. f3 {[%clk 0:02:34]}  Be6 {[%clk 0:02:55]} 10. Be3 {[%clk 0:02:33]}  Rc8 {[%clk 0:02:50]} 11. Qd2 {[%clk 0:02:29]}  Be7 {[%clk 0:02:48]} 12. Nd5 {[%clk 0:02:06]}  Bxd5 {[%clk 0:02:33]} 13. exd5 {[%clk 0:02:07]}  Nb8 {[%clk 0:02:33]} 14. Nc4 {[%clk 0:02:07]}  Nbd7 {[%clk 0:02:31]} 15. Be2 {[%clk 0:02:07]}  O-O {[%clk 0:02:31]} 16. O-O {[%clk 0:02:05]}  Nh5 {[%clk 0:02:23]} 17. Rfd1 {[%clk 0:01:53]}  f5 {[%clk 0:02:22]} 18. Bf2 {[%clk 0:01:50]}  Rf6 {[%clk 0:02:01]} 19. Qg5 {[%clk 0:01:22]}  Nf4 {[%clk 0:01:55]} 20. Bf1 {[%clk 0:01:22]}  Nh3+ {[%clk 0:01:56]} 21. gxh3 {[%clk 0:01:19]}  Rg6 {[%clk 0:01:56]} 22. Qxg6 {[%clk 0:01:19]}  hxg6 {[%clk 0:01:57]} 23. b4 {[%clk 0:01:17]}  Qf8 {[%clk 0:01:52]} 24. b5 {[%clk 0:01:15]}  Qf6 {[%clk 0:01:48]} 25. Be3 {[%clk 0:01:08]}  Qh4 {[%clk 0:01:45]} 26. Na5 {[%clk 0:01:01]}  Rxc2 {[%clk 0:01:30]} 27. Bd3 {[%clk 0:00:49]}  Rc3 {[%clk 0:01:12]} 28. Nxb7 {[%clk 0:00:31]}  axb5 {[%clk 0:01:12]} 29. a5 {[%clk 0:00:31]}  e4 {[%clk 0:01:02]} 30. a6 {[%clk 0:00:19]}  exd3 {[%clk 0:00:52]} 31. a7 {[%clk 0:00:17]}  Rc8 {[%clk 0:00:52]} 32. a8=Q {[%clk 0:00:13]}  Rxa8 {[%clk 0:00:52]} 33. Rxa8+ {[%clk 0:00:14]}  Kh7 {[%clk 0:00:47]} 34. Nd8 {[%clk 0:00:14]}  Bxd8 {[%clk 0:00:47]} 0-1


[Site "https://www.chess.com"]

[Event "Titled Tuesday Blitz January 25 2022"]
[White "Kirillov-Dmitry"]
[Black "Hasangatin, Ramil"]
[BlackFideId "4122160"]
[WhiteElo "2509"]
[BlackElo "2375"]
[Result "0-1"]
[Round "11"]
[TimeControl "180+1"]
[Date "2022.01.26"]
[WhiteClock "0:00:03"]
[BlackClock "0:01:09"]

1. d4 {[%clk 0:02:59]}  Nf6 {[%clk 0:02:59]} 2. c4 {[%clk 0:02:59]}  d6 {[%clk 0:03:00]} 3. Nc3 {[%clk 0:02:58]}  e5 {[%clk 0:03:00]} 4. dxe5 {[%clk 0:02:54]}  dxe5 {[%clk 0:03:00]} 5. Qxd8+ {[%clk 0:02:54]}  Kxd8 {[%clk 0:03:01]} 6. e3 {[%clk 0:02:51]}  Be6 {[%clk 0:03:00]} 7. b3 {[%clk 0:02:50]}  Nfd7 {[%clk 0:03:00]} 8. Bb2 {[%clk 0:02:48]}  f6 {[%clk 0:02:38]} 9. O-O-O {[%clk 0:02:46]}  c6 {[%clk 0:02:38]} 10. Kc2 {[%clk 0:02:43]}  Kc7 {[%clk 0:02:38]} 11. a3 {[%clk 0:02:33]}  a5 {[%clk 0:02:38]} 12. Nge2 {[%clk 0:02:26]}  Na6 {[%clk 0:02:37]} 13. Ng3 {[%clk 0:02:22]}  Nac5 {[%clk 0:02:37]} 14. f3 {[%clk 0:02:14]}  Bf7 {[%clk 0:02:36]} 15. h4 {[%clk 0:02:12]}  Bg6+ {[%clk 0:02:36]} 16. e4 {[%clk 0:01:58]}  h5 {[%clk 0:02:32]} 17. Nf5 {[%clk 0:01:42]}  Ne6 {[%clk 0:02:28]} 18. Ne2 {[%clk 0:01:32]}  Ndc5 {[%clk 0:02:26]} 19. g3 {[%clk 0:01:30]}  Bf7 {[%clk 0:02:20]} 20. Bh3 {[%clk 0:01:29]}  g6 {[%clk 0:02:20]} 21. Ne3 {[%clk 0:01:28]}  Bh6 {[%clk 0:02:15]} 22. Bxe6 {[%clk 0:01:22]}  Nxe6 {[%clk 0:02:09]} 23. Bc1 {[%clk 0:01:20]}  Bf8 {[%clk 0:02:05]} 24. Kc3 {[%clk 0:01:12]}  Bc5 {[%clk 0:02:05]} 25. Nc2 {[%clk 0:01:11]}  Rhd8 {[%clk 0:01:59]} 26. b4 {[%clk 0:01:05]}  axb4+ {[%clk 0:01:59]} 27. axb4 {[%clk 0:01:06]}  Be7 {[%clk 0:01:59]} 28. Be3 {[%clk 0:01:03]}  Ra4 {[%clk 0:01:48]} 29. Rxd8 {[%clk 0:01:01]}  Nxd8 {[%clk 0:01:45]} 30. Kb3 {[%clk 0:00:55]}  Ra8 {[%clk 0:01:43]} 31. Kc3 {[%clk 0:00:54]}  Ne6 {[%clk 0:01:42]} 32. Ra1 {[%clk 0:00:50]}  Rd8 {[%clk 0:01:39]} 33. c5 {[%clk 0:00:43]}  f5 {[%clk 0:01:35]} 34. Bf2 {[%clk 0:00:33]}  Bf6 {[%clk 0:01:30]} 35. Ne3 {[%clk 0:00:24]}  Nd4 {[%clk 0:01:30]} 36. Ng1 {[%clk 0:00:20]}  Nb5+ {[%clk 0:01:28]} 37. Kc2 {[%clk 0:00:18]}  f4 {[%clk 0:01:24]} 38. Ng2 {[%clk 0:00:14]}  Bc4 {[%clk 0:01:22]} 39. Rc1 {[%clk 0:00:03]}  Rd3 {[%clk 0:01:13]} 40. Ne1 {[%clk 0:00:03]}  Ra3 {[%clk 0:01:11]} 41. Kb2 {[%clk 0:00:02]}  Ra2+ {[%clk 0:01:10]} 42. Kb1 {[%clk 0:00:03]}  Na3# {[%clk 0:01:09]} 0-1


[Site "https://www.chess.com"]

[Event "Titled Tuesday Blitz January 25 2022"]
[White "Koelle, Tobias"]
[Black "Aradhya, Garg"]
[WhiteFideId "16207378"]
[BlackFideId "25006746"]
[WhiteElo "2541"]
[BlackElo "2169"]
[Result "1-0"]
[Round "11"]
[TimeControl "180+1"]
[Date "2022.01.26"]
[WhiteClock "0:00:07"]
[BlackClock "0:00:11"]

1. d4 {[%clk 0:03:00]}  d5 {[%clk 0:02:57]} 2. c4 {[%clk 0:03:00]}  c6 {[%clk 0:02:56]} 3. cxd5 {[%clk 0:02:59]}  cxd5 {[%clk 0:02:57]} 4. Bg5 {[%clk 0:02:59]}  f6 {[%clk 0:02:51]} 5. Bd2 {[%clk 0:02:58]}  Qb6 {[%clk 0:02:48]} 6. Nf3 {[%clk 0:02:34]}  Bf5 {[%clk 0:02:41]} 7. Nc3 {[%clk 0:02:31]}  e6 {[%clk 0:02:41]} 8. Nh4 {[%clk 0:02:22]}  Ne7 {[%clk 0:02:40]} 9. Nxf5 {[%clk 0:02:22]}  Nxf5 {[%clk 0:02:40]} 10. e3 {[%clk 0:02:23]}  Nc6 {[%clk 0:02:40]} 11. Rb1 {[%clk 0:02:21]}  Nd6 {[%clk 0:02:26]} 12. Na4 {[%clk 0:02:16]}  Qc7 {[%clk 0:02:19]} 13. Nc5 {[%clk 0:02:16]}  Kf7 {[%clk 0:02:18]} 14. Bd3 {[%clk 0:02:12]}  g6 {[%clk 0:02:14]} 15. O-O {[%clk 0:02:12]}  b6 {[%clk 0:02:12]} 16. Nb3 {[%clk 0:02:11]}  Be7 {[%clk 0:02:02]} 17. Rc1 {[%clk 0:02:12]}  Qd7 {[%clk 0:02:02]} 18. Qe2 {[%clk 0:02:08]}  Rac8 {[%clk 0:01:56]} 19. f3 {[%clk 0:02:05]}  e5 {[%clk 0:01:50]} 20. dxe5 {[%clk 0:02:02]}  fxe5 {[%clk 0:01:50]} 21. e4 {[%clk 0:01:47]}  dxe4 {[%clk 0:01:43]} 22. Ba6 {[%clk 0:01:46]}  Rc7 {[%clk 0:01:24]} 23. f4 {[%clk 0:01:35]}  Nf5 {[%clk 0:01:17]} 24. Bc3 {[%clk 0:01:24]}  Ncd4 {[%clk 0:00:48]} 25. Qxe4 {[%clk 0:01:14]}  Qc6 {[%clk 0:00:48]} 26. Qe1 {[%clk 0:00:47]}  Nxb3 {[%clk 0:00:35]} 27. axb3 {[%clk 0:00:48]}  b5 {[%clk 0:00:23]} 28. Qxe5 {[%clk 0:00:41]}  Rb8 {[%clk 0:00:14]} 29. Ba5 {[%clk 0:00:20]}  Qxc1 {[%clk 0:00:13]} 30. Bxc7 {[%clk 0:00:18]}  Qc5+ {[%clk 0:00:12]} 31. Kh1 {[%clk 0:00:11]}  Re8 {[%clk 0:00:12]} 32. Bxb5 {[%clk 0:00:09]}  Ne3 {[%clk 0:00:11]} 33. Bxe8+ {[%clk 0:00:08]}  Kf8 {[%clk 0:00:11]} 34. Qh8# {[%clk 0:00:07]} 1-0


[Site "https://www.chess.com"]

[Event "Titled Tuesday Blitz January 25 2022"]
[White "Liyanage, Ranindu Dilshan"]
[Black "Potapova, Margarita"]
[WhiteFideId "9915834"]
[BlackFideId "14126869"]
[WhiteElo "1858"]
[BlackElo "2209"]
[Result "1-0"]
[Round "11"]
[TimeControl "180+1"]
[Date "2022.01.26"]
[WhiteClock "0:00:06"]
[BlackClock "0:00:02"]

1. e4 {[%clk 0:02:59]}  c5 {[%clk 0:02:57]} 2. Nf3 {[%clk 0:03:00]}  d6 {[%clk 0:02:58]} 3. d4 {[%clk 0:03:00]}  cxd4 {[%clk 0:02:59]} 4. Nxd4 {[%clk 0:03:01]}  Nf6 {[%clk 0:02:59]} 5. Nc3 {[%clk 0:03:01]}  a6 {[%clk 0:03:00]} 6. Be3 {[%clk 0:03:01]}  e5 {[%clk 0:03:00]} 7. Nb3 {[%clk 0:03:02]}  Be6 {[%clk 0:03:01]} 8. h3 {[%clk 0:03:02]}  Be7 {[%clk 0:03:01]} 9. g4 {[%clk 0:03:02]}  O-O {[%clk 0:02:57]} 10. Qf3 {[%clk 0:03:03]}  a5 {[%clk 0:02:33]} 11. a4 {[%clk 0:02:53]}  Na6 {[%clk 0:02:27]} 12. g5 {[%clk 0:02:42]}  Nd7 {[%clk 0:02:26]} 13. h4 {[%clk 0:02:32]}  Nb4 {[%clk 0:02:26]} 14. Qd1 {[%clk 0:02:27]}  f5 {[%clk 0:02:12]} 15. exf5 {[%clk 0:02:20]}  Bxf5 {[%clk 0:02:09]} 16. Rc1 {[%clk 0:02:19]}  Be6 {[%clk 0:01:44]} 17. Bg2 {[%clk 0:02:15]}  Nb6 {[%clk 0:01:28]} 18. O-O {[%clk 0:01:54]}  Nc4 {[%clk 0:01:27]} 19. Bxb7 {[%clk 0:01:41]}  Nxe3 {[%clk 0:01:15]} 20. fxe3 {[%clk 0:01:42]}  Qb6 {[%clk 0:01:15]} 21. Bxa8 {[%clk 0:01:30]}  Qxe3+ {[%clk 0:01:14]} 22. Kg2 {[%clk 0:01:30]}  Bh3+ {[%clk 0:00:59]} 23. Kh2 {[%clk 0:01:29]}  Bxf1 {[%clk 0:00:47]} 24. Qxf1 {[%clk 0:00:56]}  Rxf1 {[%clk 0:00:42]} 25. Rxf1 {[%clk 0:00:57]}  h6 {[%clk 0:00:21]} 26. Nxa5 {[%clk 0:00:33]}  hxg5 {[%clk 0:00:16]} 27. Nc6 {[%clk 0:00:24]}  Nxc6 {[%clk 0:00:14]} 28. Bxc6 {[%clk 0:00:25]}  Qd2+ {[%clk 0:00:12]} 29. Bg2 {[%clk 0:00:22]}  gxh4 {[%clk 0:00:11]} 30. Nd5 {[%clk 0:00:14]}  Bg5 {[%clk 0:00:10]} 31. a5 {[%clk 0:00:14]}  Qxc2 {[%clk 0:00:06]} 32. a6 {[%clk 0:00:13]}  Bf4+ {[%clk 0:00:05]} 33. Nxf4 {[%clk 0:00:12]}  Qa4 {[%clk 0:00:02]} 34. Nd5 {[%clk 0:00:06]}  Qxa6 {[%clk 0:00:02]} 35. Ne7+ {[%clk 0:00:07]}  Kh7 {[%clk 0:00:02]} 36. Nf5 {[%clk 0:00:08]}  Qa4 {[%clk 0:00:02]} 37. Nxd6 {[%clk 0:00:07]}  Qg4 {[%clk 0:00:02]} 38. Ne4 {[%clk 0:00:07]}  Kh6 {[%clk 0:00:01]} 39. Nf2 {[%clk 0:00:07]}  Qf4+ {[%clk 0:00:01]} 40. Kg1 {[%clk 0:00:07]}  Qg3 {[%clk 0:00:02]} 41. Nh3 {[%clk 0:00:07]}  Qe3+ {[%clk 0:00:02]} 42. Kh1 {[%clk 0:00:07]}  g5 {[%clk 0:00:03]} 43. Nf2 {[%clk 0:00:07]}  Qg3 {[%clk 0:00:02]} 44. Ne4 {[%clk 0:00:06]}  Qd3 {[%clk 0:00:02]} 45. Rf6+ {[%clk 0:00:05]}  Kg7 {[%clk 0:00:03]} 46. Rf1 {[%clk 0:00:05]}  g4 {[%clk 0:00:02]} 47. Nf2 {[%clk 0:00:06]} 1-0


[Site "https://www.chess.com"]

[Event "Titled Tuesday Blitz January 25 2022"]
[White "Navalgund, Niranjan"]
[Black "Hjartarson, Johann"]
[WhiteFideId "5030854"]
[BlackFideId "2300044"]
[WhiteElo "2290"]
[BlackElo "2484"]
[Result "0-1"]
[Round "11"]
[TimeControl "180+1"]
[Date "2022.01.26"]
[WhiteClock "0:01:51"]
[BlackClock "0:00:38"]

1. e4 {[%clk 0:02:57]}  c5 {[%clk 0:03:00]} 2. Nf3 {[%clk 0:02:56]}  d6 {[%clk 0:03:00]} 3. Bb5+ {[%clk 0:02:56]}  Bd7 {[%clk 0:02:59]} 4. Bxd7+ {[%clk 0:02:56]}  Nxd7 {[%clk 0:02:59]} 5. O-O {[%clk 0:02:57]}  Ngf6 {[%clk 0:02:58]} 6. Qe2 {[%clk 0:02:56]}  e6 {[%clk 0:02:58]} 7. c3 {[%clk 0:02:57]}  Be7 {[%clk 0:02:56]} 8. d4 {[%clk 0:02:57]}  d5 {[%clk 0:02:54]} 9. e5 {[%clk 0:02:57]}  Ne4 {[%clk 0:02:54]} 10. Nbd2 {[%clk 0:02:58]}  Nxd2 {[%clk 0:02:52]} 11. Bxd2 {[%clk 0:02:59]}  O-O {[%clk 0:02:51]} 12. h4 {[%clk 0:02:55]}  Rc8 {[%clk 0:02:45]} 13. h5 {[%clk 0:02:54]}  Qb6 {[%clk 0:02:42]} 14. h6 {[%clk 0:02:53]}  g6 {[%clk 0:02:42]} 15. Rab1 {[%clk 0:02:50]}  cxd4 {[%clk 0:02:39]} 16. cxd4 {[%clk 0:02:50]}  Rc4 {[%clk 0:02:39]} 17. Qd3 {[%clk 0:02:47]}  Rfc8 {[%clk 0:02:37]} 18. g3 {[%clk 0:02:42]}  Qa6 {[%clk 0:02:35]} 19. a3 {[%clk 0:02:37]}  Rc2 {[%clk 0:02:23]} 20. Qe3 {[%clk 0:02:38]}  Nb6 {[%clk 0:02:17]} 21. Qf4 {[%clk 0:02:33]}  Nc4 {[%clk 0:02:11]} 22. Bb4 {[%clk 0:02:34]}  Bd8 {[%clk 0:01:48]} 23. Ng5 {[%clk 0:02:25]}  Rc7 {[%clk 0:01:47]} 24. Nxe6 {[%clk 0:02:25]}  Qxe6 {[%clk 0:01:44]} 25. Rbc1 {[%clk 0:02:18]}  Nxb2 {[%clk 0:01:31]} 26. Rxc2 {[%clk 0:02:18]}  Rxc2 {[%clk 0:01:30]} 27. Rb1 {[%clk 0:02:18]}  Nd3 {[%clk 0:01:26]} 28. Qe3 {[%clk 0:02:15]}  Nxb4 {[%clk 0:01:25]} 29. Rxb4 {[%clk 0:02:16]}  Bb6 {[%clk 0:01:22]} 30. Qb3 {[%clk 0:02:13]}  Rc4 {[%clk 0:01:14]} 31. Rb5 {[%clk 0:02:06]}  Rxd4 {[%clk 0:01:06]} 32. a4 {[%clk 0:02:04]}  Qxe5 {[%clk 0:01:04]} 33. a5 {[%clk 0:02:04]}  Qe1+ {[%clk 0:01:00]} 34. Kg2 {[%clk 0:02:04]}  Rd1 {[%clk 0:00:46]} 35. Kh3 {[%clk 0:01:51]}  Qh1+ {[%clk 0:00:43]} 36. Kg4 {[%clk 0:01:51]}  Qh5+ {[%clk 0:00:38]} 37. Kf4 {[%clk 0:01:51]}  Qf5# {[%clk 0:00:38]} 0-1


[Site "https://www.chess.com"]